[Event "TePe Sigeman & Co Chess Tournament 2024"]
[Site "Elite Plaza Hotel, Gustav Adolfs Torg 49, Malmo, Sweden"]
[Date "2024.05.03"]
[Round "10.1"]
[White "Erigaisi, Arjun"]
[Black "Svidler, Peter"]
[Result "1-0"]
[TimeControl "90 minutes for 40 moves + 30 minutes for the rest of the game + 30 seconds per move from move one. (Tiebreak rounds 8-12: 3 minutes + 2 seconds increment)"]
[WhiteTitle "GM"]
[BlackTitle "GM"]
[WhiteFideId "35009192"]
[BlackFideId "4102142"]
[WhiteElo "2756"]
[BlackElo "2689"]

1. d4 {[%clk 00:03:03]} d5 {[%clk 00:03:00]} {[%emt 00:00:04]} 2. c4 {[%clk
00:03:04]} {[%emt 00:00:01]} e6 {[%clk 00:03:01]} 3. Nf3 {[%clk 00:03:05]}
{[%emt 00:00:01]} a6 {[%clk 00:03:03]} {[%emt 00:00:01]} 4. cxd5 {[%clk
00:03:04]} {[%emt 00:00:02]} exd5 {[%clk 00:03:04]} {[%emt 00:00:01]} 5. Nc3
{[%clk 00:03:05]} h6 {[%clk 00:02:59]} {[%emt 00:00:07]} 6. Bf4 {[%clk
00:03:05]} {[%emt 00:00:02]} Nf6 {[%clk 00:02:58]} {[%emt 00:00:04]} 7. e3
{[%clk 00:03:05]} {[%emt 00:00:02]} Bd6 {[%clk 00:02:59]} 8. Bxd6 {[%clk
00:03:04]} {[%emt 00:00:03]} Qxd6 {[%clk 00:03:00]} 9. Bd3 {[%clk 00:03:05]}
{[%emt 00:00:02]} O-O {[%clk 00:02:59]} {[%emt 00:00:03]} 10. h3 {[%clk
00:03:05]} {[%emt 00:00:01]} Nc6 {[%clk 00:02:56]} {[%emt 00:00:06]} 11. O-O
{[%clk 00:03:03]} {[%emt 00:00:04]} Ne7 {[%clk 00:02:56]} {[%emt 00:00:02]} 12.
Qc2 {[%clk 00:03:02]} {[%emt 00:00:03]} g6 {[%clk 00:02:53]} {[%emt 00:00:05]}
13. Rac1 {[%clk 00:02:38]} {[%emt 00:00:26]} Bf5 {[%clk 00:02:49]} {[%emt
00:00:06]} 14. Ne5 {[%clk 00:02:36]} {[%emt 00:00:03]} c5 {[%clk 00:02:40]}
{[%emt 00:00:11]} 15. Rfd1 {[%clk 00:02:34]} {[%emt 00:00:05]} Rac8 {[%clk
00:02:12]} {[%emt 00:00:30]} 16. Qd2 {[%clk 00:02:31]} {[%emt 00:00:05]} Bxd3
{[%clk 00:01:51]} {[%emt 00:00:22]} 17. Qxd3 {[%clk 00:02:32]} {[%emt
00:00:02]} c4 {[%clk 00:01:52]} {[%emt 00:00:02]} 18. Qe2 {[%clk 00:02:32]}
{[%emt 00:00:01]} b5 {[%clk 00:01:53]} {[%emt 00:00:01]} 19. a3 {[%clk
00:02:29]} {[%emt 00:00:05]} Qe6 {[%clk 00:01:37]} {[%emt 00:00:18]} 20. f3
{[%clk 00:02:12]} {[%emt 00:00:19]} Rb8 {[%clk 00:01:10]} {[%emt 00:00:29]} 21.
e4 {[%clk 00:02:09]} {[%emt 00:00:05]} Rfd8 {[%clk 00:01:09]} {[%emt 00:00:03]}
22. Qe3 {[%clk 00:02:04]} {[%emt 00:00:07]} Kg7 {[%clk 00:01:09]} {[%emt
00:00:02]} 23. Ne2 {[%clk 00:02:04]} {[%emt 00:00:02]} Qd6 {[%clk 00:01:06]}
{[%emt 00:00:05]} 24. g4 {[%clk 00:01:54]} {[%emt 00:00:12]} a5 {[%clk
00:01:05]} {[%emt 00:00:03]} 25. h4 {[%clk 00:01:39]} {[%emt 00:00:16]} b4
{[%clk 00:00:57]} {[%emt 00:00:10]} 26. axb4 {[%clk 00:01:39]} {[%emt
00:00:02]} Rxb4 {[%clk 00:00:58]} {[%emt 00:00:01]} 27. Rd2 {[%clk 00:01:35]}
{[%emt 00:00:06]} Rdb8 {[%clk 00:00:54]} {[%emt 00:00:06]} 28. Qxh6+ {[%clk
00:01:32]} {[%emt 00:00:05]} Kxh6 {[%clk 00:00:54]} {[%emt 00:00:02]} 29. Nxf7+
{[%clk 00:01:32]} {[%emt 00:00:02]} Kg7 {[%clk 00:00:55]} {[%emt 00:00:01]} 30.
Nxd6 {[%clk 00:01:32]} {[%emt 00:00:02]} Rxb2 {[%clk 00:00:56]} 31. Rcc2 {[%clk
00:01:23]} {[%emt 00:00:10]} R2b3 {[%clk 00:00:41]} {[%emt 00:00:17]} 32. e5
{[%clk 00:01:11]} {[%emt 00:00:14]} Nd7 {[%clk 00:00:40]} {[%emt 00:00:03]} 33.
f4 {[%clk 00:01:08]} {[%emt 00:00:05]} a4 {[%clk 00:00:41]} {[%emt 00:00:01]}
34. f5 {[%clk 00:01:05]} {[%emt 00:00:05]} a3 {[%clk 00:00:41]} {[%emt
00:00:02]} 35. Ra2 {[%clk 00:00:53]} {[%emt 00:00:14]} Rb2 {[%clk 00:00:37]}
{[%emt 00:00:06]} 36. Kf2 {[%clk 00:00:47]} {[%emt 00:00:08]} Rxd2 {[%clk
00:00:32]} {[%emt 00:00:07]} 37. Rxd2 {[%clk 00:00:48]} Nc6 {[%clk 00:00:22]}
{[%emt 00:00:12]} 38. Nc3 {[%clk 00:00:41]} {[%emt 00:00:08]} Rb3 {[%clk
00:00:23]} {[%emt 00:00:01]} 39. Nxd5 {[%clk 00:00:35]} {[%emt 00:00:08]} c3
{[%clk 00:00:22]} {[%emt 00:00:04]} 40. f6+ {[%clk 00:00:34]} {[%emt 00:00:03]}
Kf8 {[%clk 00:00:20]} {[%emt 00:00:03]} 41. Nxc3 {[%clk 00:00:27]} {[%emt
00:00:10]} Rxc3 {[%clk 00:00:21]} 42. g5 {[%clk 00:00:28]} Rb3 {[%clk
00:00:10]} {[%emt 00:00:14]} 43. Rd1 {[%clk 00:00:20]} {[%emt 00:00:10]} a2
{[%clk 00:00:09]} {[%emt 00:00:03]} 44. Ra1 {[%clk 00:00:20]} {[%emt 00:00:01]}
Ra3 {[%clk 00:00:05]} {[%emt 00:00:06]} 45. e6 {[%clk 00:00:21]} Nb6 {[%clk
00:00:06]} 46. h5 {[%clk 00:00:19]} {[%emt 00:00:04]} gxh5 {[%clk 00:00:03]}
{[%emt 00:00:06]} 47. g6 {[%clk 00:00:20]} Nd5 {[%clk 00:00:04]} 48. g7+ {[%clk
00:00:19]} {[%emt 00:00:03]} Kg8 {[%clk 00:00:06]} 49. f7+ {[%clk 00:00:20]}
Kxg7 {[%clk 00:00:07]} {[%emt 00:00:01]} 50. Rg1+ {[%clk 00:00:21]} 1-0

[Event "TePe Sigeman & Co Chess Tournament 2024"]
[Site "Elite Plaza Hotel, Gustav Adolfs Torg 49, Malmo, Sweden"]
[Date "2024.05.03"]
[Round "11.1"]
[White "Abdusattorov, Nodirbek"]
[Black "Erigaisi, Arjun"]
[Result "1/2-1/2"]
[TimeControl "90 minutes for 40 moves + 30 minutes for the rest of the game + 30 seconds per move from move one. (Tiebreak rounds 8-12: 3 minutes + 2 seconds increment)"]
[WhiteTitle "GM"]
[BlackTitle "GM"]
[WhiteFideId "14204118"]
[BlackFideId "35009192"]
[WhiteElo "2765"]
[BlackElo "2756"]

1. e4 {[%clk 00:03:03]} {[%emt 00:03:24]} c5 {[%clk 00:03:03]} 2. Nf3 {[%clk
00:03:02]} {[%emt 00:00:02]} e6 {[%clk 00:03:04]} {[%emt 00:00:01]} 3. Nc3
{[%clk 00:03:03]} Nc6 {[%clk 00:03:05]} {[%emt 00:00:01]} 4. d4 {[%clk
00:03:05]} cxd4 {[%clk 00:03:05]} {[%emt 00:00:02]} 5. Nxd4 {[%clk 00:03:06]}
Nf6 {[%clk 00:03:06]} {[%emt 00:00:01]} 6. Qd3 {[%clk 00:03:07]} {[%emt
00:00:01]} d6 {[%clk 00:03:00]} {[%emt 00:00:08]} 7. Be2 {[%clk 00:03:06]}
{[%emt 00:00:03]} Be7 {[%clk 00:02:58]} {[%emt 00:00:04]} 8. Be3 {[%clk
00:03:06]} {[%emt 00:00:02]} Bd7 {[%clk 00:02:57]} {[%emt 00:00:04]} 9. Ndb5
{[%clk 00:02:56]} {[%emt 00:00:12]} Nb4 {[%clk 00:02:57]} {[%emt 00:00:02]} 10.
Qd2 {[%clk 00:02:56]} {[%emt 00:00:02]} a6 {[%clk 00:02:57]} {[%emt 00:00:02]}
11. Nd4 {[%clk 00:02:53]} {[%emt 00:00:05]} Qc7 {[%clk 00:02:51]} {[%emt
00:00:08]} 12. O-O {[%clk 00:02:47]} {[%emt 00:00:07]} O-O {[%clk 00:02:48]}
{[%emt 00:00:05]} 13. Rfd1 {[%clk 00:02:41]} {[%emt 00:00:08]} Rac8 {[%clk
00:02:47]} {[%emt 00:00:03]} 14. a3 {[%clk 00:02:42]} {[%emt 00:00:02]} Nc6
{[%clk 00:02:48]} 15. a4 {[%clk 00:02:34]} {[%emt 00:00:10]} Na5 {[%clk
00:02:36]} {[%emt 00:00:13]} 16. f3 {[%clk 00:02:28]} {[%emt 00:00:08]} Rfd8
{[%clk 00:02:30]} {[%emt 00:00:09]} 17. Nb3 {[%clk 00:02:22]} {[%emt 00:00:09]}
Kh8 {[%clk 00:01:57]} {[%emt 00:00:34]} 18. Qe1 {[%clk 00:02:13]} {[%emt
00:00:11]} Bc6 {[%clk 00:01:25]} {[%emt 00:00:34]} 19. Qf2 {[%clk 00:02:12]}
{[%emt 00:00:03]} Nxb3 {[%clk 00:01:25]} {[%emt 00:00:03]} 20. cxb3 {[%clk
00:02:05]} {[%emt 00:00:10]} Qb8 {[%clk 00:01:20]} {[%emt 00:00:06]} 21. b4
{[%clk 00:02:04]} {[%emt 00:00:03]} Bd7 {[%clk 00:01:04]} {[%emt 00:00:18]} 22.
b5 {[%clk 00:02:05]} {[%emt 00:00:01]} axb5 {[%clk 00:01:04]} {[%emt 00:00:02]}
23. axb5 {[%clk 00:02:02]} {[%emt 00:00:05]} Re8 {[%clk 00:00:57]} {[%emt
00:00:08]} 24. Ba7 {[%clk 00:01:57]} {[%emt 00:00:08]} Qc7 {[%clk 00:00:58]}
{[%emt 00:00:01]} 25. Bb6 {[%clk 00:01:58]} {[%emt 00:00:01]} Qb8 {[%clk
00:00:59]} 26. Rdc1 {[%clk 00:01:48]} {[%emt 00:00:11]} d5 {[%clk 00:00:59]}
{[%emt 00:00:03]} 27. exd5 {[%clk 00:01:42]} {[%emt 00:00:09]} Nxd5 {[%clk
00:00:59]} {[%emt 00:00:01]} 28. Nxd5 {[%clk 00:01:41]} {[%emt 00:00:02]} exd5
{[%clk 00:00:59]} {[%emt 00:00:03]} 29. Bf1 {[%clk 00:01:34]} {[%emt 00:00:09]}
Qd6 {[%clk 00:00:54]} {[%emt 00:00:07]} 30. Bd4 {[%clk 00:01:35]} {[%emt
00:00:02]} Kg8 {[%clk 00:00:48]} {[%emt 00:00:08]} 31. b6 {[%clk 00:01:36]}
{[%emt 00:00:01]} Bf6 {[%clk 00:00:46]} {[%emt 00:00:05]} 32. Rxc8 {[%clk
00:01:20]} {[%emt 00:00:18]} Rxc8 {[%clk 00:00:46]} {[%emt 00:00:01]} 33. Rd1
{[%clk 00:01:14]} {[%emt 00:00:08]} Ba4 {[%clk 00:00:38]} {[%emt 00:00:11]} 34.
Rd2 {[%clk 00:01:05]} {[%emt 00:00:11]} Bg5 {[%clk 00:00:37]} {[%emt 00:00:02]}
35. Re2 {[%clk 00:01:03]} {[%emt 00:00:04]} h6 {[%clk 00:00:37]} {[%emt
00:00:02]} 36. Be5 {[%clk 00:01:00]} {[%emt 00:00:05]} Qg6 {[%clk 00:00:33]}
{[%emt 00:00:06]} 37. h4 {[%clk 00:00:58]} {[%emt 00:00:04]} Bf6 {[%clk
00:00:27]} {[%emt 00:00:07]} 38. h5 {[%clk 00:00:53]} {[%emt 00:00:07]} Qf5
{[%clk 00:00:24]} {[%emt 00:00:05]} 39. g4 {[%clk 00:00:38]} {[%emt 00:00:17]}
Qg5 {[%clk 00:00:25]} {[%emt 00:00:01]} 40. Qd4 {[%clk 00:00:37]} {[%emt
00:00:03]} Bxe5 {[%clk 00:00:16]} {[%emt 00:00:11]} 41. Rxe5 {[%clk 00:00:33]}
{[%emt 00:00:06]} Qf6 {[%clk 00:00:13]} {[%emt 00:00:04]} 42. Rxd5 {[%clk
00:00:23]} {[%emt 00:00:13]} Qxd4+ {[%clk 00:00:07]} {[%emt 00:00:08]} 43. Rxd4
{[%clk 00:00:24]} {[%emt 00:00:01]} Bc6 {[%clk 00:00:08]} 44. Kf2 {[%clk
00:00:24]} {[%emt 00:00:02]} Kf8 {[%clk 00:00:09]} {[%emt 00:00:01]} 45. Bd3
{[%clk 00:00:24]} {[%emt 00:00:03]} Ke7 {[%clk 00:00:09]} {[%emt 00:00:02]} 46.
Ke3 {[%clk 00:00:24]} {[%emt 00:00:02]} Ra8 {[%clk 00:00:09]} {[%emt 00:00:02]}
47. Be4 {[%clk 00:00:20]} {[%emt 00:00:05]} Bxe4 {[%clk 00:00:08]} {[%emt
00:00:04]} 48. Rxe4+ {[%clk 00:00:22]} Kf6 {[%clk 00:00:07]} {[%emt 00:00:03]}
49. Kd4 {[%clk 00:00:18]} {[%emt 00:00:06]} Ra5 {[%clk 00:00:06]} {[%emt
00:00:03]} 50. Kc4 {[%clk 00:00:16]} {[%emt 00:00:04]} g6 {[%clk 00:00:06]}
{[%emt 00:00:02]} 51. b4 {[%clk 00:00:17]} {[%emt 00:00:01]} Ra3 {[%clk
00:00:06]} {[%emt 00:00:02]} 52. Rf4+ {[%clk 00:00:17]} {[%emt 00:00:03]} Ke6
{[%clk 00:00:06]} {[%emt 00:00:01]} 53. hxg6 {[%clk 00:00:17]} {[%emt
00:00:02]} fxg6 {[%clk 00:00:07]} {[%emt 00:00:01]} 54. Rf8 {[%clk 00:00:18]}
h5 {[%clk 00:00:05]} {[%emt 00:00:04]} 55. g5 {[%clk 00:00:18]} {[%emt
00:00:02]} h4 {[%clk 00:00:05]} {[%emt 00:00:03]} 56. f4 {[%clk 00:00:19]} h3
{[%clk 00:00:04]} {[%emt 00:00:03]} 57. Rf6+ {[%clk 00:00:20]} Ke7 {[%clk
00:00:04]} {[%emt 00:00:02]} 58. Rxg6 {[%clk 00:00:21]} {[%emt 00:00:01]} Rf3
{[%clk 00:00:05]} 59. Kd5 {[%clk 00:00:22]} {[%emt 00:00:01]} Rxf4 {[%clk
00:00:05]} {[%emt 00:00:02]} 60. Rh6 {[%clk 00:00:23]} {[%emt 00:00:01]} Rxb4
{[%clk 00:00:05]} {[%emt 00:00:02]} 61. Kc5 {[%clk 00:00:20]} {[%emt 00:00:05]}
Rg4 {[%clk 00:00:05]} {[%emt 00:00:02]} 62. Rh7+ {[%clk 00:00:18]} {[%emt
00:00:05]} Ke6 {[%clk 00:00:05]} {[%emt 00:00:02]} 63. Rh6+ {[%clk 00:00:07]}
{[%emt 00:00:13]} Ke7 {[%clk 00:00:06]} 64. Rxh3 {[%clk 00:00:06]} {[%emt
00:00:03]} Rxg5+ {[%clk 00:00:07]} 65. Kb4 {[%clk 00:00:08]} 1/2-1/2

[Event "TePe Sigeman & Co Chess Tournament 2024"]
[Site "Elite Plaza Hotel, Gustav Adolfs Torg 49, Malmo, Sweden"]
[Date "2024.05.03"]
[Round "12.1"]
[White "Erigaisi, Arjun"]
[Black "Abdusattorov, Nodirbek"]
[Result "0-1"]
[TimeControl "90 minutes for 40 moves + 30 minutes for the rest of the game + 30 seconds per move from move one. (Tiebreak rounds 8-12: 3 minutes + 2 seconds increment)"]
[WhiteTitle "GM"]
[BlackTitle "GM"]
[WhiteFideId "35009192"]
[BlackFideId "14204118"]
[WhiteElo "2756"]
[BlackElo "2765"]

1. d4 {[%clk 00:03:03]} {[%emt 00:01:27]} d5 {[%clk 00:03:04]} 2. c4 c6 3. Nf3
{[%clk 00:03:05]} {[%emt 00:00:01]} Nf6 {[%clk 00:03:06]} 4. Nc3 {[%clk
00:03:06]} {[%emt 00:00:02]} a6 {[%clk 00:03:08]} 5. cxd5 {[%clk 00:03:06]}
{[%emt 00:00:02]} cxd5 {[%clk 00:03:09]} 6. Bf4 {[%clk 00:03:07]} Nc6 {[%clk
00:03:10]} 7. Rc1 {[%clk 00:03:08]} {[%emt 00:00:01]} e6 {[%clk 00:03:04]}
{[%emt 00:00:08]} 8. e3 {[%clk 00:03:08]} {[%emt 00:00:02]} Bd6 {[%clk
00:03:05]} {[%emt 00:00:01]} 9. Bg3 {[%clk 00:03:09]} O-O {[%clk 00:03:05]}
{[%emt 00:00:02]} 10. Bd3 {[%clk 00:03:09]} {[%emt 00:00:01]} Re8 {[%clk
00:02:47]} {[%emt 00:00:20]} 11. Ne5 {[%clk 00:03:10]} {[%emt 00:00:01]} Bxe5
{[%clk 00:02:35]} {[%emt 00:00:15]} 12. dxe5 {[%clk 00:03:11]} {[%emt
00:00:01]} Nd7 {[%clk 00:02:36]} 13. f4 {[%clk 00:03:01]} {[%emt 00:00:12]} Nf8
{[%clk 00:02:12]} {[%emt 00:00:26]} 14. O-O {[%clk 00:02:56]} {[%emt 00:00:07]}
Bd7 {[%clk 00:02:13]} {[%emt 00:00:02]} 15. e4 {[%clk 00:02:50]} {[%emt
00:00:08]} d4 {[%clk 00:01:49]} {[%emt 00:00:25]} 16. Ne2 {[%clk 00:02:50]}
{[%emt 00:00:01]} Nb4 {[%clk 00:01:50]} {[%emt 00:00:02]} 17. Rf3 {[%clk
00:02:45]} {[%emt 00:00:07]} Qb6 {[%clk 00:01:46]} {[%emt 00:00:07]} 18. Bf2
{[%clk 00:02:39]} {[%emt 00:00:08]} Nxd3 {[%clk 00:01:47]} {[%emt 00:00:01]} 19.
Rxd3 {[%clk 00:02:40]} {[%emt 00:00:02]} Qxb2 {[%clk 00:01:48]} {[%emt
00:00:01]} 20. Rc2 {[%clk 00:02:31]} {[%emt 00:00:11]} Qb6 {[%clk 00:01:31]}
{[%emt 00:00:18]} 21. Rxd4 {[%clk 00:02:02]} {[%emt 00:00:31]} Bc6 {[%clk
00:01:33]} 22. Rcd2 {[%clk 00:01:47]} {[%emt 00:00:18]} Qa5 {[%clk 00:01:31]}
{[%emt 00:00:03]} 23. h3 {[%clk 00:01:41]} {[%emt 00:00:07]} Rac8 {[%clk
00:01:31]} {[%emt 00:00:03]} 24. Qb3 {[%clk 00:01:40]} {[%emt 00:00:03]} Ng6
{[%clk 00:01:18]} {[%emt 00:00:15]} 25. Rb4 {[%clk 00:01:33]} {[%emt 00:00:10]}
Bb5 {[%clk 00:00:57]} {[%emt 00:00:23]} 26. a4 {[%clk 00:01:18]} {[%emt
00:00:17]} Bc4 {[%clk 00:00:59]} 27. Bb6 {[%clk 00:00:56]} {[%emt 00:00:24]}
Qxb6+ {[%clk 00:00:53]} {[%emt 00:00:08]} 28. Rxb6 {[%clk 00:00:57]} {[%emt
00:00:01]} Bxb3 {[%clk 00:00:54]} 29. Rxb3 Rc4 30. Rd4 {[%clk 00:00:53]} {[%emt
00:00:07]} Rxd4 {[%clk 00:00:56]} {[%emt 00:00:02]} 31. Nxd4 {[%clk 00:00:54]}
{[%emt 00:00:01]} Nxf4 {[%clk 00:00:57]} 32. Rxb7 {[%clk 00:00:55]} {[%emt
00:00:01]} g5 {[%clk 00:00:57]} {[%emt 00:00:02]} 33. Rb6 {[%clk 00:00:47]}
{[%emt 00:00:09]} Rd8 {[%clk 00:00:52]} {[%emt 00:00:06]} 34. Rd6 {[%clk
00:00:46]} {[%emt 00:00:04]} Rb8 {[%clk 00:00:54]} {[%emt 00:00:01]} 35. Rxa6
{[%clk 00:00:31]} {[%emt 00:00:17]} Rb2 {[%clk 00:00:52]} {[%emt 00:00:03]} 36.
a5 {[%clk 00:00:31]} {[%emt 00:00:02]} Rxg2+ {[%clk 00:00:53]} {[%emt
00:00:01]} 37. Kf1 {[%clk 00:00:33]} Ra2 {[%clk 00:00:51]} {[%emt 00:00:04]} 38.
Ra8+ {[%clk 00:00:29]} {[%emt 00:00:05]} Kg7 {[%clk 00:00:53]} 39. Ra7 {[%clk
00:00:29]} {[%emt 00:00:02]} Kg6 {[%clk 00:00:49]} {[%emt 00:00:06]} 40. Ra8
{[%clk 00:00:19]} {[%emt 00:00:12]} Nxh3 {[%clk 00:00:49]} {[%emt 00:00:03]} 41.
a6 {[%clk 00:00:20]} g4 {[%clk 00:00:50]} 42. Rg8+ {[%clk 00:00:13]} {[%emt
00:00:08]} Kh5 {[%clk 00:00:49]} {[%emt 00:00:03]} 43. Ne2 {[%clk 00:00:13]}
{[%emt 00:00:03]} Rxa6 {[%clk 00:00:44]} {[%emt 00:00:07]} 44. Rg7 {[%clk
00:00:12]} {[%emt 00:00:03]} Ng5 {[%clk 00:00:40]} {[%emt 00:00:06]} 45. Nf4+
{[%clk 00:00:11]} {[%emt 00:00:03]} Kh6 {[%clk 00:00:42]} {[%emt 00:00:01]} 46.
Rg8 {[%clk 00:00:12]} Ra4 {[%clk 00:00:42]} {[%emt 00:00:02]} 47. Kg2 {[%clk
00:00:10]} {[%emt 00:00:04]} Rxe4 {[%clk 00:00:43]} {[%emt 00:00:01]} 48. Kg3
{[%clk 00:00:12]} Rxe5 {[%clk 00:00:42]} {[%emt 00:00:03]} 49. Kxg4 {[%clk
00:00:12]} Re1 {[%clk 00:00:36]} {[%emt 00:00:09]} 50. Kg3 {[%clk 00:00:08]}
{[%emt 00:00:06]} Rg1+ {[%clk 00:00:36]} {[%emt 00:00:02]} 51. Ng2 {[%clk
00:00:09]} e5 {[%clk 00:00:36]} {[%emt 00:00:03]} 52. Re8 {[%clk 00:00:09]}
{[%emt 00:00:01]} f6 {[%clk 00:00:37]} 53. Kf2 {[%clk 00:00:10]} {[%emt
00:00:01]} Ra1 {[%clk 00:00:38]} {[%emt 00:00:01]} 54. Rg8 {[%clk 00:00:10]}
{[%emt 00:00:01]} Kh5 {[%clk 00:00:37]} {[%emt 00:00:03]} 55. Ne3 {[%clk
00:00:11]} Ra2+ {[%clk 00:00:38]} {[%emt 00:00:01]} 56. Kf1 {[%clk 00:00:12]}
{[%emt 00:00:01]} Ra4 {[%clk 00:00:33]} {[%emt 00:00:07]} 57. Nd5 {[%clk
00:00:10]} {[%emt 00:00:04]} Ra6 {[%clk 00:00:31]} {[%emt 00:00:04]} 58. Ne3
{[%clk 00:00:09]} {[%emt 00:00:02]} Kh4 {[%clk 00:00:32]} {[%emt 00:00:01]} 59.
Nd5 {[%clk 00:00:07]} {[%emt 00:00:04]} Kg3 {[%clk 00:00:28]} {[%emt 00:00:06]}
60. Ke2 {[%clk 00:00:08]} {[%emt 00:00:01]} Kg4 {[%clk 00:00:23]} {[%emt
00:00:07]} 61. Ne3+ {[%clk 00:00:09]} {[%emt 00:00:01]} Kf4 {[%clk 00:00:19]}
{[%emt 00:00:06]} 62. Nd5+ {[%emt 00:00:02]} Ke4 63. Nxf6+ {[%clk 00:00:10]}
{[%emt 00:00:02]} Rxf6 {[%clk 00:00:22]} 64. Rxg5 {[%clk 00:00:11]} Rh6 {[%clk
00:00:20]} {[%emt 00:00:05]} 65. Rg4+ {[%clk 00:00:11]} {[%emt 00:00:01]} Kf5
{[%clk 00:00:21]} 66. Ra4 {[%clk 00:00:08]} {[%emt 00:00:04]} Rh3 {[%clk
00:00:22]} {[%emt 00:00:01]} 67. Kf2 {[%clk 00:00:09]} {[%emt 00:00:02]} h5
{[%clk 00:00:23]} 68. Rb4 {[%clk 00:00:09]} {[%emt 00:00:02]} Rh1 {[%clk
00:00:15]} {[%emt 00:00:10]} 69. Kg2 {[%clk 00:00:09]} {[%emt 00:00:02]} Re1
{[%clk 00:00:16]} 70. Kf2 {[%clk 00:00:04]} {[%emt 00:00:07]} Re4 {[%clk
00:00:17]} {[%emt 00:00:01]} 71. Rb8 {[%clk 00:00:05]} Rf4+ {[%clk 00:00:16]}
{[%emt 00:00:03]} 72. Ke3 {[%clk 00:00:05]} {[%emt 00:00:02]} h4 {[%clk
00:00:17]} 73. Rf8+ {[%clk 00:00:05]} {[%emt 00:00:02]} Kg4 {[%clk 00:00:18]}
{[%emt 00:00:01]} 74. Rg8+ {[%clk 00:00:06]} {[%emt 00:00:01]} Kf5 {[%clk
00:00:16]} {[%emt 00:00:04]} 75. Rf8+ {[%clk 00:00:06]} {[%emt 00:00:01]} Kg5
{[%clk 00:00:15]} 76. Rg8+ {[%clk 00:00:07]} {[%emt 00:00:03]} Kh6 {[%clk
00:00:15]} {[%emt 00:00:03]} 77. Rh8+ {[%clk 00:00:06]} {[%emt 00:00:03]} Kg7
{[%clk 00:00:16]} {[%emt 00:00:01]} 78. Rh5 {[%clk 00:00:06]} {[%emt 00:00:01]}
Kf6 {[%clk 00:00:16]} {[%emt 00:00:02]} 79. Rh8 {[%clk 00:00:07]} {[%emt
00:00:01]} Ra4 {[%clk 00:00:16]} {[%emt 00:00:02]} 80. Kf3 {[%clk 00:00:07]}
{[%emt 00:00:02]} h3 {[%clk 00:00:10]} {[%emt 00:00:08]} 81. Rh5 {[%clk
00:00:03]} {[%emt 00:00:06]} Ra2 {[%clk 00:00:12]} {[%emt 00:00:01]} 82. Ke4
{[%clk 00:00:03]} {[%emt 00:00:02]} h2 {[%clk 00:00:13]} 83. Rf5+ {[%clk
00:00:03]} {[%emt 00:00:02]} Kg6 {[%clk 00:00:14]} {[%emt 00:00:01]} 84. Rf1
{[%clk 00:00:04]} Kg5 {[%clk 00:00:15]} {[%emt 00:00:01]} 85. Kxe5 {[%clk
00:00:05]} {[%emt 00:00:02]} Kg4 {[%clk 00:00:17]} 86. Ke4 {[%clk 00:00:06]}
{[%emt 00:00:01]} Kg3 {[%clk 00:00:17]} {[%emt 00:00:02]} 87. Kd4 {[%emt
00:00:03]} 0-1